bitfinex-derivatives/quotes_SOLF0:USTF0_20241002
["timestamp","ask_amount","ask_price","bid_price","bid_amount"]
[1727879542263,3.4222,146.13,146.1,3.4226]
[1727879542469,42.74,146.14,146.09,0.12502]
[1727879542770,3.4228,146.1,146.09,0.12502]
[1727879545573,26.31,146.17,146.09,0.12502]
[1727879545868,7.4,146.16,146.09,0.12502]
[1727879546071,3.4228,146.1,146.09,0.12502]
[1727879550380,3.4241,146.05,146.03,0.12502]
[1727879550876,3.4242,146.04,146.03,0.12502]
[1727879551673,3.424,146.05,146.03,0.12502]
[1727879552172,7.4,146.09,146.03,0.12502]
[1727879552977,3.4234,146.08,146.03,0.12502]
[1727879553384,33.27872,146.15,146.03,0.12502]
[1727879553583,33.1551,146.12,146.03,0.12502]
[1727879553773,7.4,146.14,146.03,0.12502]
[1727879553774,26.31,146.08,146.03,0.12502]
[1727879553977,7.4,146.07,146.03,0.12502]
[1727879554177,3.4242,146.04,146.03,0.12502]
[1727879556183,3.4238,146.06,146.03,0.12502]
[1727879556382,7.4,146.09,146.03,0.12502]
[1727879556683,7.4,146.1,146.04,3.4241]
[1727879556880,3.4236,146.07,146.04,3.4241]
[1727879557179,7.4,146.1,146.04,3.4241]
[1727879557381,3.4237,146.06,146.03,3.54932]
[1727879557685,3.47397749,146.09,146.03,0.12502]
[1727879557875,3.4242,146.04,146.03,0.12502]
[1727879558074,3.41951999,146.08,146.03,0.12502]
[1727879558273,3.4241,146.05,146.03,0.12502]
[1727879558473,33.71,146.1,146.03,0.12502]
[1727879558680,33.71,146.1,146.03,3.54932]
[1727879559187,3.4233,146.08,146.03,3.54932]
[1727879559386,3.35101643,146.08,146.03,3.54932]
[1727879559586,33.71,146.1,146.03,3.54932]
[1727879559787,3.4239,146.06,146.03,3.54932]
[1727879560286,26.43502,146.15,146.04,26.31]
[1727879560587,26.43502,146.15,146.08,3.4231]
[1727879560588,7.4,146.14,146.08,3.4231]
[1727879560789,3.4224,146.12,146.06,26.31]
[1727879560984,7.52502,146.15,146.07,1.3407]
[1727879561387,3.4227,146.11,146.07,1.3407]
[1727879561691,33.83502,146.15,146.07,1.3407]
[1727879561889,33.83502,146.15,146.05,1.3181]
[1727879561890,26.31,146.13,146.05,1.3181]
[1727879562989,26.31,146.1,146.03,0.12502]
[1727879563293,7.4,146.09,146.03,0.12502]
[1727879563588,3.37292386,146.08,146.03,0.12502]
[1727879563784,7.4,146.09,146.03,0.12502]
[1727879564182,3.4234,146.08,146.03,0.12502]
[1727879564389,7.4,146.09,146.03,0.12502]
[1727879564895,3.4239,146.06,146.03,3.54932]
[1727879565089,7.4,146.09,146.03,0.12502]
[1727879565478,3.4236,146.07,146.04,3.424]
[1727879565679,7.4,146.09,146.03,0.12502]
[1727879565984,3.4239,146.06,146.03,3.54932]
[1727879566189,7.4,146.12,146.03,0.12502]
[1727879566487,3.4229,146.1,146.07,3.4234]
[1727879566791,7.4,146.13,146.04,26.31]
[1727879567091,3.4229,146.1,146.07,3.4234]
[1727879567292,0.12502,146.15,146.06,27.5768]
[1727879567483,0.12502,146.15,146.09,26.31]
[1727879567681,0.12502,146.15,146.1,1.2728]
[1727879567880,0.12502,146.15,146.11,26.31]
[1727879568088,0.12502,146.15,146.14,3.4218]
[1727879568478,0.12502,146.21,146.12,1.2941]
[1727879568689,0.12502,146.21,146.16,3.4212]
[1727879569193,3.4207,146.19,146.16,3.4212]
[1727879569391,0.12502,146.21,146.15,1.2668]
[1727879570886,3.4205,146.2,146.15,1.2668]
[1727879571088,0.12502,146.21,146.15,1.2668]
[1727879571692,0.12502,146.21,146.16,42.68]
[1727879571897,0.12502,146.27,146.19,42.68]
[1727879572094,0.12502,146.27,146.21,42.68]
[1727879572489,3.4191,146.26,146.22,3.4198]
[1727879572799,0.12502,146.27,146.21,42.68]
[1727879573193,0.12502,146.27,146.25,3.4193]
[1727879573889,0.12502,146.27,146.24,3.4194]
[1727879574092,0.12502,146.27,146.21,50.06]
[1727879574295,0.12502,146.27,146.23,3.4196]
[1727879574497,0.12502,146.27,146.21,53.53028412]
[1727879574697,7.38,146.3,146.21,53.53028412]
[1727879574698,0.12502,146.33,146.23,42.68]
[1727879574900,7.50502,146.33,146.27,3.4186]
[1727879575100,3.4182,146.3,146.27,3.4186]
[1727879575495,0.12502,146.33,146.26,42.68]
[1727879575995,0.12502,146.33,146.28,3.4184]
[1727879576192,0.12502,146.33,146.29,1.2685]
[1727879576392,3.4177,146.32,146.29,1.2685]
[1727879576891,0.12502,146.33,146.3,3.4179]
[1727879577591,0.12502,146.33,146.29,1.2685]
[1727879577791,116.58,146.4,146.29,1.2685]
[1727879577792,116.58,146.4,146.29,12.05132845]
[1727879577998,7.38,146.41,146.3,42.68]
[1727879578192,73.88,146.48,146.33,42.68]
[1727879578193,42.80502,146.45,146.33,42.68]
[1727879578386,3.41513401,146.44,146.33,50.06]
[1727879578802,3.41513401,146.44,146.34,3.417]
[1727879580191,7.38,146.42,146.33,42.68]
[1727879580398,7.38,146.42,146.32,7.38]
[1727879580804,3.4166,146.37,146.32,3.4175]
[1727879581005,7.38,146.42,146.32,3.4175]
[1727879581204,7.38,146.42,146.3,1.3242]
[1727879581205,42.68,146.4,146.3,1.3242]
[1727879581409,3.41513401,146.44,146.3,1.3242]
[1727879581410,42.68,146.43,146.3,1.3242]
[1727879581599,7.38,146.42,146.33,42.68]
[1727879582295,7.38,146.42,146.32,7.38]
[1727879582496,3.4173,146.34,146.3,47.4221]
[1727879582695,7.38,146.42,146.3,47.4221]
[1727879582899,7.38,146.38,146.3,1.3242]
[1727879583099,50.06,146.38,146.29,1.2685]
[1727879583500,3.4176,146.32,146.29,4.6867]
[1727879583809,7.38,146.33,146.27,0.12502]
[1727879584101,3.4186,146.28,146.27,0.12502]
[1727879584405,7.38,146.32,146.27,0.12502]
[1727879584594,3.418,146.31,146.27,3.54362]
[1727879584795,7.38,146.32,146.27,0.12502]
[1727879585102,1.0,146.37,146.27,0.12502]
[1727879585103,7.38,146.35,146.27,0.12502]
[1727879585299,10.88429046,146.35,146.27,0.12502]
[1727879585806,10.88429046,146.35,146.28,3.4184]
[1727879585998,8.38,146.37,146.28,42.68]
[1727879586198,7.38,146.37,146.29,3.4182]
[1727879586403,7.38,146.37,146.28,42.68]
[1727879586999,7.38,146.37,146.29,1.2794]
[1727879587409,3.3373125,146.36,146.29,1.2794]
[1727879588306,3.3373125,146.36,146.29,4.6977]
[1727879588711,3.3373125,146.36,146.29,1.2794]
[1727879589210,7.38,146.37,146.29,1.2794]
[1727879589404,7.38,146.37,146.27,3.54372]
[1727879589602,3.4184,146.29,146.27,0.12502]
[1727879590105,50.06,146.33,146.27,0.12502]
[1727879590304,3.4186,146.28,146.27,0.12502]
[1727879590912,10.82361158,146.29,146.21,0.12502]
[1727879591210,3.42,146.22,146.21,0.12502]
[1727879594008,3.421,146.18,146.16,1.3063]
[1727879594611,7.38,146.21,146.16,1.3063]
[1727879594808,3.4207,146.19,146.16,1.3063]
[1727879595206,7.38,146.21,146.15,0.12502]
[1727879595512,10.85448888,146.21,146.15,0.12502]
[1727879595710,7.38,146.21,146.15,0.12502]
[1727879595914,3.4208,146.19,146.15,3.54642]
[1727879596311,3.4208,146.19,146.15,0.12502]
[1727879596613,7.38,146.21,146.15,0.12502]
[1727879597104,3.4207,146.19,146.16,3.4213]
[1727879597302,7.38,146.21,146.15,0.12502]
[1727879597607,3.4214,146.16,146.15,0.12502]
[1727879597814,10.8177796,146.21,146.15,0.12502]
[1727879598317,3.4214,146.16,146.15,0.12502]
[1727879598707,10.8177796,146.21,146.15,0.12502]
[1727879599103,7.38,146.21,146.15,0.12502]
[1727879599315,10.72301744,146.21,146.15,0.12502]
[1727879600218,3.4213,146.17,146.15,0.12502]
[1727879601911,26.27,146.26,146.15,0.12502]
[1727879602111,7.38,146.25,146.15,26.39502]
[1727879602412,7.38,146.25,146.15,0.12502]
[1727879602612,26.27,146.23,146.15,0.12502]
[1727879602914,3.4214,146.16,146.15,0.12502]
[1727879603311,29.72719917,146.18,146.09,0.12502]
[1727879603511,3.4226,146.11,146.09,0.12502]
[1727879603910,10.77036922,146.15,146.09,0.12502]
[1727879605014,7.38,146.15,146.09,0.12502]
[1727879605216,3.4224,146.12,146.09,3.54802]
[1727879605415,7.38,146.15,146.09,0.12502]
[1727879606504,0.7488,146.2,146.1,26.27]
[1727879606710,7.38,146.19,146.1,26.27]
[1727879606912,7.38,146.19,146.11,1.3261]
[1727879607205,0.12502,146.21,146.13,26.27]
[1727879607405,3.54542,146.21,146.18,3.4209]
[1727879608010,0.12502,146.21,146.19,3.4206]
[1727879608514,0.12502,146.21,146.15,26.27]
[1727879609018,0.12502,146.21,146.14,3.9591]
[1727879609217,0.12502,146.21,146.14,2.633]
[1727879609417,3.5579233,146.21,146.14,2.633]
[1727879609615,3.421,146.18,146.11,3.4224]
[1727879609917,7.38,146.17,146.1,27.5961]
[1727879610221,3.421,146.18,146.1,27.5961]
[1727879610429,7.38,146.2,146.1,27.5961]
[1727879610716,3.4211,146.18,146.15,3.4215]
[1727879610916,0.12502,146.21,146.13,26.27]
[1727879611808,0.12502,146.21,146.15,3.4215]
[1727879611809,3.4207,146.19,146.15,3.4215]
[1727879612012,0.12502,146.21,146.13,26.27]
[1727879612432,3.42845476,146.2,146.11,7.38]
[1727879612614,7.50502,146.21,146.13,26.27]
[1727879612821,3.4208,146.19,146.16,3.4213]
[1727879613017,7.50502,146.21,146.16,3.4213]
[1727879613222,0.12502,146.21,146.15,26.27]
[1727879613422,0.12502,146.21,146.2,3.4204]
[1727879613819,0.12502,146.21,146.16,2.7016]
[1727879614018,0.12502,146.21,146.18,3.4208]
[1727879614019,3.54522,146.21,146.18,3.4208]
[1727879614330,0.12502,146.21,146.16,2.7016]
[1727879614522,0.12502,146.21,146.19,3.4206]
[1727879614728,0.12502,146.21,146.16,2.7016]
[1727879615032,0.12502,146.21,146.17,1.3373]
[1727879615613,0.12502,146.21,146.18,3.4207]
[1727879615917,0.12502,146.21,146.17,1.3373]
[1727879616121,0.12502,146.21,146.19,3.4206]
[1727879616420,0.12502,146.21,146.17,1.3373]
[1727879616715,3.4206,146.2,146.17,4.7583]
[1727879617224,0.12502,146.21,146.19,3.4205]
[1727879617418,0.12502,146.21,146.17,1.3373]
[1727879618021,0.12502,146.21,146.17,27.6073]
[1727879618525,3.4206,146.2,146.17,4.7583]
[1727879618823,0.12502,146.21,146.17,4.7583]
[1727879619020,0.12502,146.21,146.16,2.7016]
[1727879619224,3.4211,146.18,146.16,2.7016]
[1727879619426,0.12502,146.21,146.16,2.7016]
[1727879619629,3.4208,146.19,146.16,6.1229]
[1727879619814,0.12502,146.21,146.16,2.7016]
[1727879620215,0.12502,146.21,146.17,3.421]
[1727879620418,0.12502,146.21,146.16,2.7016]
[1727879620823,3.4206,146.2,146.16,2.7016]
[1727879621123,0.12502,146.21,146.16,2.7016]
[1727879621422,0.12502,146.21,146.17,3.421]
[1727879621738,3.44361158,146.29,146.19,26.27]
[1727879622028,3.4187,146.28,146.25,3.4191]
[1727879622226,7.38,146.29,146.21,26.27]
[1727879622432,3.4188,146.28,146.22,3.4198]
[1727879622623,37.01661695,146.32,146.21,37.08367558]
[1727879622819,37.01661695,146.32,146.21,33.65]
[1727879623128,37.01661695,146.32,146.21,7.38]
[1727879623129,26.27,146.3,146.21,7.38]
[1727879623339,7.38,146.28,146.19,26.27]
[1727879623627,7.38,146.28,146.21,3.42]
[1727879625225,3.4195,146.24,146.21,3.42]
[1727879626135,3.4195,146.24,146.19,3.4205]
[1727879626329,7.38,146.28,146.19,3.4205]
[1727879626528,7.38,146.28,146.17,7.38]
[1727879627031,7.38,146.28,146.2,3.4203]
[1727879627226,7.38,146.28,146.18,1.3225]
[1727879627441,3.4197,146.23,146.21,3.42]
[1727879627732,7.38,146.28,146.18,1.3225]
[1727879628132,33.65,146.28,146.18,1.3225]
[1727879628831,7.38,146.28,146.18,1.3225]
[1727879629030,7.38,146.28,146.19,26.27]
[1727879629231,7.38,146.28,146.19,33.65]
[1727879629628,7.38,146.28,146.18,1.3225]
[1727879629629,33.65,146.28,146.18,1.3225]
[1727879630828,3.4193,146.25,146.22,3.4199]
[1727879631236,7.38,146.28,146.18,1.3225]
[1727879631435,3.4196,146.24,146.21,3.4201]
[1727879631632,7.38,146.28,146.19,26.27]
[1727879631836,7.36,146.28,146.21,26.27]
[1727879632030,3.54402,146.27,146.21,26.27]
[1727879632231,0.12502,146.27,146.21,29.68631861]
[1727879632532,0.12502,146.27,146.26,3.419]
[1727879633039,3.4177,146.32,146.29,3.4182]
[1727879633232,0.12502,146.33,146.27,2.6548]
[1727879634239,3.4182,146.3,146.27,6.0736]
[1727879634957,3.4184,146.29,146.27,2.6548]
[1727879635633,0.12502,146.33,146.27,2.6548]
[1727879635943,3.4186,146.28,146.27,2.6548]
[1727879636138,0.12502,146.33,146.27,2.6548]
[1727879638128,0.12502,146.33,146.27,6.0735]
[1727879638129,3.4181,146.3,146.27,6.0735]
[1727879638742,0.12502,146.33,146.27,2.6548]
[1727879640843,3.4182,146.3,146.27,6.0735]
[1727879641050,0.12502,146.33,146.27,2.6548]
[1727879641945,26.27,146.32,146.23,7.36]
[1727879642140,7.36,146.31,146.23,7.36]
[1727879642452,7.36,146.31,146.22,4.0009]
[1727879643146,3.4189,146.27,146.24,3.4193]
[1727879643334,7.36,146.31,146.22,4.0009]
[1727879644146,3.4183,146.29,146.24,3.4193]
[1727879644345,7.36,146.31,146.22,4.0009]
[1727879644649,3.4183,146.3,146.27,3.4186]
[1727879644842,7.36,146.31,146.22,4.0009]
[1727879645347,0.12502,146.33,146.3,3.418]
[1727879645544,0.12502,146.33,146.25,33.63]
[1727879645852,0.12502,146.33,146.28,26.27]
[1727879646044,0.12502,146.33,146.29,2.6138]
[1727879646243,3.4179,146.31,146.29,2.6138]
[1727879646643,0.12502,146.33,146.29,2.6138]
[1727879646949,0.12502,146.33,146.31,3.4178]
[1727879647151,0.12502,146.33,146.3,1.3133]
[1727879648348,0.12502,146.39,146.3,1.3133]
[1727879648550,7.48502,146.39,146.31,26.27]
[1727879648748,0.12502,146.39,146.31,26.27]
[1727879648945,0.12502,146.39,146.33,26.27]
[1727879649151,3.4157,146.41,146.37,3.4163]
[1727879649447,10.9334789,146.45,146.38,1.3782]
[1727879649647,3.416,146.39,146.38,1.3782]
[1727879650351,3.4165,146.37,146.33,0.12502]
[1727879650752,7.36,146.41,146.33,0.12502]
[1727879651053,3.4172,146.34,146.33,0.12502]
[1727879651841,7.36,146.41,146.33,0.12502]
[1727879651842,3.4165,146.37,146.33,0.12502]
[1727879652053,7.36,146.41,146.33,3.54232]
[1727879652756,33.63,146.42,146.35,3.4169]
[1727879652949,33.63,146.42,146.33,0.12502]
[1727879653346,33.63,146.42,146.33,3.54242]
[1727879653553,33.63,146.42,146.33,0.12502]
[1727879653754,3.4172,146.34,146.33,0.12502]
[1727879653959,33.63,146.42,146.33,0.12502]
[1727879654654,26.27,146.4,146.33,0.12502]
[1727879654847,3.4172,146.34,146.33,0.12502]
[1727879655543,7.36,146.38,146.33,0.12502]
[1727879656052,3.4171,146.35,146.33,0.12502]
[1727879656249,7.36,146.38,146.33,0.12502]
[1727879657154,3.4168,146.36,146.33,3.54242]
[1727879657355,26.27,146.44,146.33,26.39502]
[1727879657551,3.4163,146.38,146.35,3.4168]
[1727879657752,7.36,146.43,146.33,26.39502]
[1727879658457,3.4162,146.39,146.33,26.39502]
[1727879658651,29.8434789,146.45,146.33,26.39502]
[1727879658859,3.5734789,146.45,146.35,26.27]
[1727879659153,0.12502,146.45,146.37,26.27]
[1727879659352,0.12502,146.45,146.38,1.2608]
[1727879659744,3.53972,146.45,146.41,3.4153]
[1727879660554,3.53972,146.45,146.4,1.302]
[1727879660755,3.53972,146.45,146.42,3.4153]
[1727879661348,0.12502,146.45,146.44,3.4148]
[1727879661554,3.4142,146.47,146.44,3.4148]
[1727879661962,3.4141,146.48,146.45,3.4146]
[1727879662150,3.45937007,146.51,146.42,26.27]
[1727879662352,0.12502,146.51,146.46,26.27]
[1727879662559,0.12502,146.51,146.47,2.6001]
[1727879662560,3.53832,146.51,146.47,2.6001]
[1727879662761,0.12502,146.51,146.47,2.6001]
[1727879663153,3.53832,146.51,146.48,3.4138]
[1727879663356,0.12502,146.51,146.47,2.6001]
[1727879663660,3.4146,146.46,146.42,29.6851]
[1727879663965,7.34,146.49,146.4,28.8678]
[1727879665549,0.12502,146.51,146.4,28.8678]
[1727879665751,0.12502,146.51,146.45,26.27]
[1727879665952,0.12502,146.51,146.44,7.34]
[1727879666858,0.12502,146.51,146.48,3.4138]
[1727879667452,0.12502,146.51,146.45,1.3046]
[1727879668267,3.4137,146.49,146.46,3.4143]
[1727879668559,0.12502,146.51,146.45,1.3046]
[1727879668756,3.4138,146.49,146.45,4.7191]
[1727879669064,0.12502,146.51,146.45,4.7191]
[1727879669656,0.12502,146.51,146.41,26.27]
[1727879669864,0.12502,146.51,146.41,27.5757]
[1727879669865,7.34,146.5,146.41,27.5757]
[1727879670067,7.34,146.5,146.41,30.9911]
[1727879670269,7.34,146.5,146.41,27.5757]
[1727879670764,7.34,146.5,146.41,30.9911]
[1727879670968,26.27,146.49,146.4,1.3354]
[1727879671367,26.27,146.49,146.36,26.27]
[1727879671569,26.27,146.49,146.36,27.6308]
[1727879671764,26.27,146.49,146.37,3.4163]
[1727879671973,3.4158,146.4,146.36,27.6308]
[1727879672488,3.4158,146.4,146.35,1.3936]
[1727879672659,7.34,146.4,146.33,0.12502]
[1727879672864,26.27,146.39,146.33,0.12502]
[1727879673269,3.4172,146.34,146.33,0.12502]
[1727879673466,7.34,146.36,146.33,0.12502]
[1727879673667,3.4172,146.34,146.33,0.12502]
[1727879675571,7.34,146.36,146.33,0.12502]
[1727879675777,7.34,146.39,146.33,0.12502]
[1727879676775,3.4164,146.38,146.33,0.12502]
[1727879677078,50.01,146.39,146.33,0.12502]
[1727879677265,42.67,146.37,146.27,0.12502]
[1727879677582,3.4186,146.28,146.27,0.12502]
[1727879678068,3.4186,146.28,146.21,0.12502]
[1727879678069,53.43083716,146.29,146.21,0.12502]
[1727879678266,3.42,146.22,146.21,0.12502]
[1727879678577,50.01,146.22,146.12,1.287]
[1727879678780,3.4214,146.16,146.12,1.287]
[1727879679071,3.39750817,146.21,146.14,3.4218]
[1727879679271,42.67,146.25,146.13,42.67]
[1727879679473,7.34,146.24,146.13,42.67]
[1727879679668,42.67,146.23,146.12,1.287]
[1727879680070,7.34,146.24,146.13,42.67]
[1727879680379,3.4202,146.21,146.13,42.67]
[1727879680573,7.34,146.23,146.15,42.79502]
[1727879680979,10.7598,146.23,146.15,42.79502]
[1727879681275,73.78,146.26,146.15,42.79502]
[1727879681470,73.78,146.26,146.18,42.67]
[1727879681471,7.34,146.25,146.18,42.67]
[1727879681778,7.34,146.25,146.19,3.4206]
[1727879682469,7.34,146.25,146.18,42.67]
[1727879682470,3.4202,146.22,146.18,42.67]
[1727879683681,7.34,146.25,146.18,42.67]
[1727879684277,10.7593,146.25,146.2,3.4204]
[1727879684884,10.7593,146.25,146.18,42.67]
[1727879685077,7.34,146.25,146.18,42.67]
[1727879685381,73.78,146.26,146.18,42.67]
[1727879685575,73.78,146.26,146.15,42.79502]
[1727879685776,42.67,146.25,146.15,0.12502]
[1727879686978,3.4203,146.21,146.16,3.4212]
[1727879687179,7.34,146.23,146.15,0.12502]
[1727879687389,3.4202,146.22,146.17,3.4211]
[1727879687587,7.34,146.23,146.17,3.4211]
[1727879687781,7.34,146.23,146.15,0.12502]
[1727879688289,3.4209,146.18,146.15,0.12502]
[1727879688583,3.49846818,146.21,146.15,0.12502]
[1727879688789,3.4204,146.21,146.17,3.421]
[1727879688976,7.34,146.23,146.15,0.12502]
[1727879689183,7.36,146.23,146.15,0.12502]
[1727879689379,3.42,146.22,146.18,3.4209]
[1727879689876,7.36,146.23,146.19,3.4206]
[1727879689877,3.4198,146.23,146.19,3.4206]
[1727879690287,7.36,146.24,146.17,42.67]
[1727879690682,7.36,146.24,146.19,3.4205]
[1727879690683,3.4199,146.23,146.19,3.4205]
[1727879691185,73.78,146.26,146.17,42.67]
[1727879691382,81.12,146.26,146.17,42.67]
[1727879691778,3.4197,146.24,146.2,3.4203]
[1727879691974,3.4197,146.24,146.17,42.67]
[1727879692284,3.4197,146.24,146.2,3.4203]
[1727879692482,3.4193,146.25,146.19,42.67]
[1727879692686,7.46502,146.27,146.2,1.3233]
[1727879692883,3.4195,146.24,146.21,3.4201]
[1727879693090,7.46502,146.27,146.15,0.12502]
[1727879693091,42.67,146.22,146.15,0.12502]
[1727879693387,3.4214,146.16,146.15,0.12502]
[1727879693584,42.67,146.2,146.15,0.12502]
[1727879693787,10.75565142,146.21,146.15,0.12502]
[1727879693984,7.34,146.21,146.15,0.12502]
[1727879694495,3.4206,146.2,146.16,3.4211]
[1727879694783,50.01,146.22,146.15,0.12502]
[1727879694992,3.39058125,146.21,146.15,0.12502]
[1727879695388,3.4211,146.17,146.15,0.12502]
[1727879695585,3.39058125,146.21,146.15,0.12502]
[1727879695980,3.4213,146.17,146.15,0.12502]
[1727879697090,3.40563682,146.21,146.15,0.12502]
[1727879698189,3.4209,146.19,146.15,3.54652]
[1727879698389,7.34,146.22,146.15,0.12502]
[1727879698788,3.4206,146.2,146.15,0.12502]
[1727879699088,3.43564086,146.21,146.15,0.12502]
[1727879699288,7.34,146.22,146.15,0.12502]
[1727879699488,3.4214,146.16,146.15,0.12502]
[1727879699991,3.4224,146.12,146.09,0.12502]
[1727879700294,37.02457743,146.18,146.09,0.12502]
[1727879700487,26.29,146.15,146.09,0.12502]
[1727879700687,3.4228,146.1,146.09,0.12502]
[1727879701088,7.34,146.1,146.03,0.12502]
[1727879701295,33.63,146.1,146.03,0.12502]
[1727879701594,3.46604559,146.09,146.03,3.54942]
[1727879701803,7.34,146.09,146.03,0.12502]
[1727879702700,7.34,146.09,146.05,3.4238]
[1727879702701,10.7631,146.09,146.05,3.4238]
[1727879702902,7.34,146.11,146.03,0.12502]
[1727879703204,3.4232,146.09,146.05,3.4239]
[1727879703497,3.4232,146.09,146.03,0.12502]
[1727879703699,3.4232,146.08,146.05,3.4239]
[1727879703902,7.34,146.11,146.03,0.12502]
[1727879704289,3.4232,146.09,146.06,3.4236]
[1727879704493,7.34,146.11,146.03,0.12502]
[1727879704791,3.4224,146.12,146.09,3.4228]
[1727879704996,7.34,146.13,146.05,26.29]
[1727879705193,33.63,146.13,146.03,0.12502]
[1727879705497,26.29,146.11,146.03,0.12502]
[1727879705696,3.49733682,146.1,146.03,0.12502]
[1727879705904,3.4242,146.04,146.03,0.12502]
[1727879706202,10.73975106,146.09,146.03,0.12502]
[1727879706598,7.34,146.09,146.03,0.12502]
[1727879707300,3.4234,146.08,146.04,3.424]
[1727879707798,3.4234,146.08,146.05,3.4239]
[1727879707997,10.7629,146.1,146.03,26.41502]
[1727879708403,7.34,146.1,146.07,3.4233]
[1727879708597,7.34,146.1,146.03,26.41502]
[1727879708799,7.34,146.13,146.05,26.29]
[1727879709002,7.34,146.13,146.08,3.4232]
[1727879709302,3.4224,146.12,146.06,1.2578]
[1727879709502,3.4224,146.12,146.07,1.3372]
[1727879709699,3.4226,146.11,146.08,3.4231]
[1727879710104,7.34,146.13,146.08,3.4231]
[1727879710296,3.4225,146.12,146.08,3.4231]
[1727879710492,0.12502,146.15,146.08,26.29]
[1727879710699,0.12502,146.15,146.08,27.5612]
[1727879711304,3.4227,146.11,146.08,1.2712]
[1727879711505,0.12502,146.15,146.08,1.2712]
[1727879712398,0.12502,146.15,146.08,8.6112]
[1727879712604,0.12502,146.15,146.12,26.29]
[1727879712804,0.12502,146.15,146.14,3.4218]
[1727879713003,0.12502,146.15,146.12,26.29]
[1727879713410,3.4208,146.19,146.12,26.29]
[1727879713610,7.34,146.2,146.12,26.29]
[1727879713810,7.34,146.2,146.13,1.3966]
[1727879714407,0.12502,146.21,146.13,1.3966]
[1727879715116,0.12502,146.21,146.16,26.29]
[1727879715312,0.12502,146.21,146.17,1.2768]
[1727879715612,29.71083716,146.29,146.19,26.29]
[1727879715813,7.46502,146.27,146.17,1.2768]
[1727879716211,7.46502,146.27,146.2,3.4204]
[1727879716516,7.46502,146.27,146.17,1.2768]
[1727879717015,7.46502,146.27,146.19,26.29]
[1727879717721,0.12502,146.27,146.19,26.29]
[1727879718118,0.12502,146.27,146.2,7.34]
[1727879718517,3.4193,146.25,146.22,3.4198]
[1727879718721,0.12502,146.27,146.2,8.6045]
[1727879718924,3.54402,146.27,146.23,3.4197]
[1727879719129,0.12502,146.27,146.23,3.4197]
[1727879719624,0.12502,146.27,146.21,26.29]
[1727879720021,0.12502,146.27,146.21,29.77940499]
[1727879720226,0.12502,146.27,146.26,3.419]
[1727879720717,7.46502,146.33,146.27,3.4186]
[1727879720925,0.12502,146.33,146.28,26.29]
[1727879721119,7.46502,146.39,146.29,9.8962]
[1727879721319,0.12502,146.39,146.35,3.4168]
[1727879721524,0.12502,146.39,146.31,26.29]
[1727879721936,0.12502,146.39,146.36,3.4166]
[1727879722228,0.12502,146.39,146.33,7.34]
[1727879722433,0.12502,146.39,146.33,33.63]
[1727879722836,0.12502,146.45,146.35,26.29]
[1727879723123,0.12502,146.45,146.38,26.29]
[1727879723326,3.4155,146.42,146.38,29.7061]